bitfinex/quotes_BTCUSD_20250917
["timestamp","ask_amount","ask_price","bid_price","bid_amount"]
[1758115515969,0.63166482,116420.0,116410.0,0.0888754]
[1758115520339,0.60889482,116420.0,116410.0,0.0888754]
[1758115521609,0.5830865,116420.0,116410.0,0.0888754]
[1758115521819,0.6073965,116420.0,116410.0,0.0888754]
[1758115522453,0.5830865,116420.0,116410.0,0.0888754]
[1758115522656,0.5830865,116420.0,116410.0,0.1118754]
[1758115523754,0.5830865,116420.0,116410.0,0.0888754]
[1758115523960,0.6073965,116420.0,116410.0,0.0888754]
[1758115525129,0.5830865,116420.0,116410.0,0.0888754]
[1758115525327,0.6073965,116420.0,116410.0,0.0888754]
[1758115527640,0.63320394,116420.0,116410.0,0.0888754]
[1758115528121,1.03923769,116420.0,116410.0,0.00360573]
[1758115528991,0.63320394,116420.0,116410.0,0.00360573]
[1758115531962,0.63320394,116420.0,116410.0,0.0858754]
[1758115533013,0.63420394,116420.0,116410.0,0.0858754]
[1758115533424,0.63320394,116420.0,116410.0,0.0858754]
[1758115534296,0.22717019,116420.0,116410.0,0.0858754]
[1758115534523,0.63320394,116420.0,116410.0,0.0858754]
[1758115535956,0.63320394,116420.0,116410.0,0.0868754]
[1758115539230,0.63147394,116420.0,116410.0,0.0868754]
[1758115539619,0.63147394,116420.0,116410.0,0.0178824]
[1758115542130,0.22544019,116420.0,116410.0,0.0178824]
[1758115542310,0.63147394,116420.0,116410.0,0.0178824]
[1758115546984,0.71674361,116420.0,116410.0,0.0178824]
[1758115549721,0.63147394,116420.0,116410.0,0.0178824]
[1758115566363,0.63147394,116420.0,116410.0,0.001]
[1758115568811,0.17183606,116390.0,116380.0,0.06831573]
[1758115569033,0.57786981,116390.0,116380.0,0.1535854]
[1758115569265,0.60721981,116390.0,116380.0,0.1535854]
[1758115569470,0.60721981,116390.0,116380.0,0.08536967]
[1758115570088,0.61564811,116390.0,116380.0,0.08526967]
[1758115570955,0.61564811,116390.0,116380.0,0.08726967]
[1758115572111,0.64146133,116390.0,116380.0,0.08726967]
[1758115572755,0.64146133,116390.0,116380.0,0.002]
[1758115573374,0.1718656,116370.0,116360.0,0.09194573]
[1758115573562,0.1718656,116370.0,116360.0,0.1772154]
[1758115573761,0.1738856,116370.0,116360.0,0.11103967]
[1758115574407,0.1739856,116370.0,116360.0,0.11103967]
[1758115574581,0.1739856,116370.0,116360.0,0.1115096]
[1758115575343,0.1739856,116370.0,116360.0,0.1135096]
[1758115576607,0.58001935,116370.0,116360.0,0.0898796]
[1758115576811,0.58295935,116370.0,116360.0,0.0878396]
[1758115577012,0.58295935,116370.0,116360.0,0.1114696]
[1758115577465,0.1769256,116370.0,116360.0,0.0878396]
[1758115577670,0.1769256,116370.0,116360.0,0.1114696]
[1758115577878,0.1739856,116370.0,116360.0,0.1135096]
[1758115578089,0.1639856,116370.0,116360.0,0.1135096]
[1758115578955,0.1669256,116370.0,116360.0,0.0878396]
[1758115579178,0.55241324,116370.0,116360.0,0.0878396]
[1758115579434,0.55241324,116370.0,116360.0,0.0877396]
[1758115581671,0.57823032,116370.0,116360.0,0.0877396]
[1758115582669,0.65324976,116370.0,116360.0,0.00246993]
[1758115582858,0.57823032,116370.0,116360.0,0.00246993]
[1758115590467,0.21703268,116370.0,116360.0,0.00246993]
[1758115590607,0.57823032,116370.0,116360.0,0.00246993]
[1758115592685,0.19274268,116370.0,116360.0,0.00246993]
[1758115593077,0.21703268,116370.0,116360.0,0.00246993]
[1758115593298,0.57823032,116370.0,116360.0,0.00246993]
[1758115597302,0.84779032,116370.0,116360.0,0.00246993]
[1758115598386,0.8638695,116370.0,116360.0,0.00246993]
[1758115601644,0.86990306,116370.0,116360.0,0.00246993]
[1758115601856,0.86990338,116370.0,116360.0,0.00246993]
[1758115602785,0.50870574,116370.0,116360.0,0.00246993]
[1758115602996,0.86990338,116370.0,116360.0,0.00246993]
[1758115604534,0.87259133,116370.0,116360.0,0.00246993]
[1758115606753,0.87259133,116370.0,116360.0,0.00046993]
[1758115607343,0.87259133,116370.0,116360.0,0.00146993]
[1758115607975,0.87262032,116370.0,116360.0,0.00146993]
[1758115609060,1.23381796,116370.0,116360.0,1e-08]
[1758115609491,0.87262032,116370.0,116360.0,1e-08]
[1758115611851,0.87262045,116370.0,116360.0,1e-08]
[1758115612318,0.95789012,116370.0,116360.0,1e-08]
[1758115621472,0.95520204,116370.0,116360.0,1e-08]
[1758115625458,0.9491633,116370.0,116360.0,1e-08]
[1758115625653,0.86389363,116370.0,116360.0,1e-08]
[1758115626313,0.86389615,116370.0,116360.0,1e-08]
[1758115626887,0.84779032,116370.0,116360.0,1e-08]
[1758115629295,0.86390297,116370.0,116360.0,1e-08]
[1758115631427,0.86994761,116370.0,116360.0,1e-08]
[1758115631838,0.95521728,116370.0,116360.0,1e-08]
[1758115639846,1.40707868,116370.0,116360.0,1e-08]
[1758115640680,1.32129901,116370.0,116360.0,1e-08]
[1758115640887,0.50823997,116370.0,116360.0,1e-08]
[1758115641100,1.32129901,116370.0,116360.0,1e-08]
[1758115642029,1.32131478,116370.0,116360.0,1e-08]
[1758115646993,0.50825574,116370.0,116360.0,1e-08]
[1758115647233,1.32131478,116370.0,116360.0,1e-08]
[1758115651294,0.50825574,116370.0,116360.0,1e-08]
[1758115651474,1.32131478,116370.0,116360.0,1e-08]
[1758115654270,1.37441342,116370.0,116360.0,1e-08]
[1758115660045,1.32131478,116370.0,116360.0,1e-08]
[1758115660434,0.62144526,116370.0,116360.0,1e-08]
[1758115660668,0.89092526,116370.0,116360.0,1e-08]
[1758115660848,0.89092526,116370.0,116360.0,0.02314001]
[1758115661428,0.88487806,116370.0,116360.0,0.02314001]
[1758115661975,0.87991806,116370.0,116360.0,0.02520001]
[1758115662192,0.8637922,116370.0,116360.0,0.02844001]
[1758115662587,0.8637922,116370.0,116360.0,0.02520001]
[1758115663667,0.8658922,116370.0,116360.0,0.02520001]
[1758115664746,0.8689822,116370.0,116360.0,0.02520001]
[1758115665350,0.8658922,116370.0,116360.0,0.02520001]
[1758115665578,0.45936268,116370.0,116360.0,0.02520001]
[1758115665778,0.8658922,116370.0,116360.0,0.02520001]
[1758115668119,0.8689822,116370.0,116360.0,0.02520001]
[1758115668759,0.45726268,116370.0,116360.0,0.02520001]
[1758115668992,0.8637922,116370.0,116360.0,0.02520001]
[1758115669207,0.8658922,116370.0,116360.0,0.02520001]
[1758115670900,0.8689822,116370.0,116360.0,0.02520001]
[1758115671742,0.18778268,116370.0,116360.0,0.00530001]
[1758115672001,0.8689822,116370.0,116360.0,0.02520001]
[1758115672718,0.95425187,116370.0,116360.0,0.02520001]
[1758115672923,0.8689822,116370.0,116360.0,0.02520001]
[1758115674056,0.8689822,116370.0,116360.0,1e-08]
[1758115674270,0.8689822,116370.0,116360.0,0.02314001]
[1758115679258,0.8689822,116370.0,116360.0,0.01863041]
[1758115679696,0.46245268,116370.0,116360.0,0.02071041]
[1758115679909,0.45936268,116370.0,116360.0,0.02071041]
[1758115680164,0.8658922,116370.0,116360.0,0.02071041]
[1758115681017,0.8658922,116370.0,116360.0,0.00208]
[1758115681222,0.45936268,116370.0,116360.0,0.00208]
[1758115681436,0.8658922,116370.0,116360.0,0.02691]
[1758115682173,0.18778268,116370.0,116360.0,0.02691]
[1758115682367,0.45722268,116370.0,116360.0,0.52181919]
[1758115683093,0.45722268,116370.0,116360.0,0.11528967]
[1758115684646,0.8637522,116370.0,116360.0,0.11528967]
[1758115684877,0.45722268,116370.0,116360.0,0.11528967]
[1758115685086,0.8637522,116370.0,116360.0,0.11528967]
[1758115691886,0.45722268,116370.0,116360.0,0.11528967]
[1758115692165,0.5943122,116370.0,116360.0,0.11528967]
[1758115692656,0.18778268,116370.0,116360.0,0.11528967]
[1758115693337,0.18778268,116370.0,116360.0,0.52181919]
[1758115693997,0.1619656,116370.0,116360.0,0.52181919]
[1758115694914,0.1619656,116370.0,116360.0,0.53038089]
[1758115695587,0.1619656,116370.0,116360.0,0.52181919]
[1758115697516,0.1619656,116370.0,116360.0,0.11528967]
[1758115715454,0.1619656,116370.0,116360.0,0.11217967]
[1758115716018,0.1619656,116370.0,116360.0,0.11517967]
[1758115716215,0.1619656,116370.0,116360.0,0.11217967]
[1758115716216,0.52315437,116370.0,116360.0,0.11217967]
[1758115716449,0.1619656,116370.0,116360.0,0.11217967]
[1758115718409,0.52315437,116370.0,116360.0,0.11217967]
[1758115718615,0.1619656,116370.0,116360.0,0.11217967]
[1758115718823,0.52315437,116370.0,116360.0,0.11217967]
[1758115720735,0.1619656,116370.0,116360.0,0.11217967]
[1758115720944,0.52315437,116370.0,116360.0,0.11217967]
[1758115723004,0.1619656,116370.0,116360.0,0.11517967]
[1758115723221,0.52315437,116370.0,116360.0,0.11517967]
[1758115723421,0.52315437,116370.0,116360.0,0.11217967]
[1758115732766,0.81997437,116370.0,116360.0,0.08526967]
[1758115733647,0.845792,116370.0,116360.0,0.08526967]
[1758115739370,0.17188037,116360.0,116350.0,0.0001]
[1758115739588,0.17189514,116350.0,116340.0,0.0001]
[1758115739777,0.53515391,116350.0,116340.0,0.11000967]
[1758115739948,0.53515391,116350.0,116340.0,0.11206967]
[1758115740164,0.19978544,116350.0,116340.0,0.11206967]
[1758115740370,0.56107421,116350.0,116340.0,0.11206967]
[1758115740954,0.19988544,116350.0,116340.0,0.11206967]
[1758115742249,0.17406514,116350.0,116340.0,0.11206967]
[1758115742461,0.53525391,116350.0,116340.0,0.11206967]
[1758115742653,0.53827391,116350.0,116340.0,0.11206967]
[1758115743019,0.53827391,116350.0,116340.0,0.08536967]
[1758115743909,0.56102391,116350.0,116340.0,0.08536967]
[1758115745036,0.56102391,116350.0,116340.0,0.08836967]
[1758115745392,0.17199514,116350.0,116340.0,0.11316967]
[1758115745605,0.17199514,116350.0,116340.0,0.11628967]
[1758115753987,0.17199514,116350.0,116340.0,0.11316967]
[1758115756171,0.17199514,116350.0,116340.0,0.11628967]
[1758115757195,0.17199514,116350.0,116340.0,0.13348066]
[1758115761780,0.17199514,116350.0,116340.0,1.11807331]
[1758115761986,0.17199514,116350.0,116340.0,1.10088232]
[1758115762384,0.17199514,116350.0,116340.0,0.69454095]
[1758115762946,0.17199514,116350.0,116340.0,0.52263104]
[1758115763482,0.17199514,116350.0,116340.0,1.10088232]
[1758115763910,0.17199514,116350.0,116340.0,1.12669989]
[1758115764499,0.17199514,116350.0,116340.0,0.31401715]
[1758115764699,0.17199514,116350.0,116340.0,1.12669989]
[1758115765118,0.17199514,116350.0,116340.0,0.72035852]
[1758115766590,0.17199514,116350.0,116340.0,1.12669989]
[1758115766937,0.17199514,116350.0,116340.0,0.72035852]
[1758115770291,0.17199514,116350.0,116340.0,1.12669989]
[1758115777051,0.0001,116350.0,116340.0,1.12669989]
[1758115780554,0.17198037,116360.0,116340.0,1.12669989]
[1758115780760,0.17198037,116360.0,116350.0,0.80442055]
[1758115780993,0.17198037,116360.0,116350.0,0.78723104]
[1758115781350,0.17198037,116360.0,116350.0,0.78937104]
[1758115782334,0.17198037,116360.0,116350.0,0.79137104]
[1758115782490,0.17198037,116360.0,116350.0,0.79147104]
[1758115783108,0.17198037,116360.0,116350.0,0.38512967]
[1758115783313,0.17408037,116360.0,116350.0,0.78824104]
[1758115784289,0.17408037,116360.0,116350.0,0.38189967]
[1758115784505,0.17408037,116360.0,116350.0,0.78824104]
[1758115788230,0.17198037,116360.0,116350.0,0.78824104]
[1758115789103,0.17408037,116360.0,116350.0,0.78824104]
[1758115789705,0.17198037,116360.0,116350.0,0.78824104]
[1758115789864,0.17198037,116360.0,116350.0,0.79147104]
[1758115790721,0.17198037,116360.0,116350.0,0.38512967]
[1758115790931,0.17198037,116360.0,116350.0,0.79147104]
[1758115796735,0.17404037,116360.0,116350.0,0.11320967]
[1758115796941,0.17727037,116360.0,116350.0,0.78851104]
[1758115797528,0.17404037,116360.0,116350.0,0.78851104]
[1758115799083,0.17404037,116360.0,116350.0,0.38216967]
[1758115799283,0.17727037,116360.0,116350.0,0.78851104]
[1758115799845,0.17404037,116360.0,116350.0,0.78851104]
[1758115800085,0.17404037,116360.0,116350.0,0.51955104]
[1758115800301,0.17404037,116360.0,116350.0,0.35842967]
[1758115800466,0.17198037,116360.0,116350.0,0.78847104]
[1758115801084,0.17404037,116360.0,116350.0,0.51955104]
[1758115801281,0.17404037,116360.0,116350.0,0.78847104]
[1758115801884,0.17198037,116360.0,116350.0,0.96336618]
[1758115802299,0.17198037,116360.0,116350.0,0.79147104]
[1758115802508,0.17198037,116360.0,116350.0,0.96336618]
[1758115802712,0.0001,116360.0,116350.0,0.96336618]
[1758115803144,0.0001,116360.0,116350.0,0.98917957]
[1758115803540,0.0001,116360.0,116350.0,0.5828382]
[1758115803844,0.17198037,116360.0,116350.0,0.41094306]
[1758115804019,0.17198037,116360.0,116350.0,0.98917957]
[1758115804242,0.0001,116360.0,116350.0,1.05413686]
[1758115804443,0.17196569,116370.0,116350.0,1.05413686]
[1758115804647,0.17196569,116370.0,116360.0,0.43286137]
[1758115804846,0.17196569,116370.0,116360.0,0.51813104]
[1758115805047,0.17196569,116370.0,116360.0,0.52014104]
[1758115805246,0.17196569,116370.0,116360.0,0.28568004]
[1758115805448,0.17196569,116370.0,116360.0,0.52014104]
[1758115805655,0.17196569,116370.0,116360.0,0.69202141]
[1758115805852,0.17196569,116370.0,116360.0,0.52014104]
[1758115806520,0.17196569,116370.0,116360.0,0.11088967]
[1758115806728,0.17196569,116370.0,116360.0,0.51723104]
[1758115806729,0.17399569,116370.0,116360.0,0.51723104]
[1758115806965,0.17196569,116370.0,116360.0,0.11088967]
[1758115807173,0.17399569,116370.0,116360.0,0.38076967]
[1758115807722,0.17719569,116370.0,116360.0,0.38076967]
[1758115808351,0.1719656,116370.0,116360.0,0.96200141]
[1758115808562,0.0001,116370.0,116360.0,0.96200141]
[1758115808799,0.18055665,116380.0,116370.0,0.1718656]
[1758115809002,0.18102658,116380.0,116370.0,0.66548664]
[1758115809150,0.18102658,116380.0,116370.0,0.11379967]
[1758115809362,0.18102658,116380.0,116370.0,0.52014104]
[1758115809564,0.18102658,116380.0,116370.0,0.11379967]
[1758115809764,0.18102658,116380.0,116370.0,0.52014104]
[1758115810184,0.18102658,116380.0,116370.0,0.11379967]
[1758115810398,0.61554795,116380.0,116370.0,0.35414967]
[1758115810649,0.61554795,116380.0,116370.0,0.35424967]
[1758115811362,0.20920658,116380.0,116370.0,0.35424967]
[1758115811569,0.61554795,116380.0,116370.0,0.08536967]
[1758115812182,0.20920658,116380.0,116370.0,0.08536967]
[1758115812513,0.18102658,116380.0,116370.0,0.5374276]
[1758115812636,0.18102658,116380.0,116370.0,0.51723104]
[1758115813655,0.18102658,116380.0,116370.0,0.52024104]
[1758115814484,0.00046993,116380.0,116370.0,1.09844801]
[1758115814926,0.17232076,116380.0,116370.0,1.09844801]
[1758115815137,0.17232076,116380.0,116370.0,0.52024104]
[1758115815717,0.17232076,116380.0,116370.0,0.69210664]
[1758115815917,0.17232076,116380.0,116370.0,0.52024104]
[1758115816127,0.17232076,116380.0,116370.0,0.69210664]
[1758115817123,0.17232076,116380.0,116370.0,0.52024104]
[1758115817716,0.17232076,116380.0,116370.0,0.11389967]
[1758115817921,0.17232076,116380.0,116370.0,0.52024104]
[1758115818133,0.17232076,116380.0,116370.0,0.08737967]
[1758115818374,0.58389213,116380.0,116370.0,0.35620967]
[1758115818726,0.60684213,116380.0,116370.0,0.35620967]
[1758115819184,0.58389213,116380.0,116370.0,0.35620967]
[1758115819466,0.17755076,116380.0,116370.0,0.37971967]
[1758115819672,0.58389213,116380.0,116370.0,0.35420967]
[1758115819887,0.17765076,116380.0,116370.0,0.35420967]
[1758115820176,0.58399213,116380.0,116370.0,0.35520967]
[1758115820335,0.60694213,116380.0,116370.0,0.08636967]
[1758115820782,0.63275563,116380.0,116370.0,0.08636967]
[1758115821901,0.58761489,116380.0,116370.0,0.08636967]
[1758115822337,0.22641426,116380.0,116370.0,0.08636967]
[1758115822568,0.20346426,116380.0,116370.0,0.08636967]
[1758115822769,0.20026426,116380.0,116370.0,0.11188967]
[1758115824561,0.17189514,116350.0,116340.0,0.0001]
[1758115824781,0.17195426,116310.0,116300.0,0.02351]
[1758115825028,0.17195426,116310.0,116300.0,0.37970967]
[1758115825446,0.17195426,116310.0,116300.0,0.38271967]
[1758115825961,0.17195426,116310.0,116300.0,0.38286078]
[1758115826168,0.53518489,116310.0,116300.0,0.35634078]
[1758115826371,0.17718426,116310.0,116300.0,0.35433078]
[1758115826779,0.17205426,116310.0,116300.0,0.37985078]
[1758115827191,0.17205426,116310.0,116300.0,0.38185078]
[1758115828676,0.17408426,116310.0,116300.0,0.35834078]
[1758115828802,0.17728426,116310.0,116300.0,0.35433078]
[1758115829228,0.53848489,116310.0,116300.0,0.00014111]
[1758115829433,0.56143489,116310.0,116300.0,0.00014111]
[1758115829672,0.58726666,116310.0,116300.0,0.00014111]
[1758115831558,0.22606603,116310.0,116300.0,0.00014111]
[1758115831763,0.58726666,116310.0,116300.0,0.00014111]
[1758115832216,0.49506603,116310.0,116300.0,0.00014111]
[1758115832462,0.92297721,116310.0,116300.0,0.00014111]
[1758115832845,0.85626666,116310.0,116300.0,0.00014111]
[1758115833974,0.49506603,116310.0,116300.0,0.00014111]
[1758115834177,0.85626666,116310.0,116300.0,0.00014111]
[1758115834823,0.85718666,116310.0,116300.0,0.00014111]
[1758115837797,0.47303603,116310.0,116300.0,0.00014111]
[1758115838461,0.19991603,116310.0,116300.0,0.08752078]
[1758115838666,0.46780603,116310.0,116300.0,0.11091078]
[1758115838892,0.46780603,116310.0,116300.0,0.11101078]
[1758115839305,0.19788603,116310.0,116300.0,0.11101078]
[1758115839968,0.20003603,116310.0,116300.0,0.11101078]
[1758115840338,0.20325603,116310.0,116300.0,0.08762078]
[1758115840536,0.20325603,116310.0,116300.0,0.08551078]
[1758115840940,0.20003603,116310.0,116300.0,0.11101078]
[1758115841165,0.19788603,116310.0,116300.0,0.11101078]
[1758115841606,0.19788603,116310.0,116300.0,0.47221141]
[1758115841808,0.0001,116310.0,116300.0,0.64714045]
[1758115842395,0.0001,116330.0,116320.0,0.17193947]
[1758115842596,0.18058989,116350.0,116330.0,0.17192469]
[1758115842797,0.18058989,116350.0,116340.0,0.76248129]
[1758115843018,0.18058989,116350.0,116340.0,0.7452903]
[1758115843784,0.18058989,116350.0,116340.0,0.91720021]
[1758115844004,0.18058989,116350.0,116340.0,0.38408967]
[1758115844411,0.18058989,116350.0,116340.0,0.55599958]
[1758115844791,0.18058989,116350.0,116340.0,0.87825112]
[1758115845953,0.18273989,116350.0,116340.0,0.08737967]
[1758115846189,0.20852989,116350.0,116340.0,0.35550967]
[1758115846394,0.20852989,116350.0,116340.0,0.08526967]
[1758115846604,0.20852989,116350.0,116340.0,0.35550967]
[1758115847239,0.20852989,116350.0,116340.0,0.08526967]
[1758115847631,0.20952989,116350.0,116340.0,0.08526967]
[1758115849469,0.20852989,116350.0,116340.0,0.08526967]
[1758115849773,0.20952989,116350.0,116340.0,0.08526967]
[1758115851975,0.17190991,116340.0,116330.0,0.0001]
[1758115852288,0.66607136,116340.0,116330.0,0.08536967]
[1758115852487,0.19984991,116340.0,116330.0,0.08536967]
[1758115852857,0.19994991,116340.0,116330.0,0.08536967]
[1758115855804,0.17737991,116340.0,116330.0,0.08536967]
[1758115856414,0.20121991,116340.0,116330.0,0.08536967]
[1758115856934,0.17737991,116340.0,116330.0,0.08536967]
[1758115858124,0.17192469,116330.0,116320.0,0.0001]
[1758115858337,0.68992614,116330.0,116320.0,0.08551078]
[1758115858541,0.20068469,116330.0,116320.0,0.08541078]
[1758115858965,0.20078469,116330.0,116320.0,0.08541078]
[1758115859642,0.69494614,116330.0,116320.0,0.08541078]
[1758115859951,0.69494614,116330.0,116320.0,0.08641078]
[1758115860213,0.71428602,116330.0,116320.0,0.00114111]
[1758115860653,0.69494614,116330.0,116320.0,0.00114111]
[1758115861679,0.20078469,116330.0,116320.0,0.00114111]
[1758115861881,0.76060486,116330.0,116320.0,0.00114111]
[1758115862332,0.20078469,116330.0,116320.0,0.00114111]
[1758115862913,0.20078469,116330.0,116320.0,0.00014111]
[1758115863134,0.20378469,116330.0,116320.0,0.00014111]
[1758115863972,0.69794614,116330.0,116320.0,0.00014111]
[1758115866859,0.20378469,116330.0,116320.0,0.00014111]
[1758115867037,0.69794614,116330.0,116320.0,0.00014111]
[1758115867984,0.17994469,116330.0,116320.0,0.00014111]
[1758115868178,0.17502469,116330.0,116320.0,0.08754078]
[1758115868390,0.17502469,116330.0,116320.0,0.28515025]
[1758115868588,0.0031,116330.0,116320.0,0.7793117]
[1758115868784,0.0031,116330.0,116320.0,1.0495917]
[1758115869106,0.003,116330.0,116320.0,1.0496917]
[1758115869514,0.17201018,116340.0,116320.0,1.0496917]
[1758115869670,0.17201018,116340.0,116330.0,0.59662358]
[1758115869863,0.17201018,116340.0,116330.0,0.11093967]
[1758115870079,0.17201018,116340.0,116330.0,0.11306967]
[1758115870508,0.17201018,116340.0,116330.0,0.30218682]
[1758115870685,0.17201018,116340.0,116330.0,0.28499436]
[1758115870881,0.0001,116340.0,116330.0,0.77915581]
[1758115871088,0.17200991,116340.0,116330.0,0.78025581]
[1758115871943,0.17200991,116340.0,116330.0,0.60833112]
[1758115872572,0.17200991,116340.0,116330.0,0.11416967]
[1758115872954,0.17718991,116340.0,116330.0,0.08636967]
[1758115873153,0.17718991,116340.0,116330.0,0.001]
[1758115873154,0.78018549,116340.0,116330.0,0.001]
[1758115873590,0.69499136,116340.0,116330.0,0.001]
[1758115873798,0.20082991,116340.0,116330.0,0.001]
[1758115874008,0.17192469,116330.0,116320.0,0.00024111]
[1758115874219,0.17192469,116330.0,116320.0,0.08551078]
[1758115874432,0.17403469,116330.0,116320.0,0.08551078]
[1758115874645,0.17403469,116330.0,116320.0,0.11017078]
[1758115875098,0.17192469,116330.0,116320.0,0.11331078]
[1758115875312,0.17202469,116330.0,116320.0,0.13050472]
[1758115875692,0.17202469,116330.0,116320.0,0.62466617]
[1758115875872,0.17202469,116330.0,116320.0,0.60747223]
[1758115877451,0.0001,116330.0,116320.0,0.7794117]
[1758115877690,0.0001,116330.0,116320.0,0.8619717]
[1758115877902,0.0001,116340.0,116330.0,0.17192469]
[1758115878115,0.0001,116340.0,116330.0,1.02175581]
[1758115878315,0.0001,116340.0,116330.0,1.44742581]
[1758115878501,0.0001,116340.0,116330.0,1.44955581]
[1758115878948,0.0001,116350.0,116340.0,0.17190991]
[1758115879130,0.0001,116350.0,116340.0,0.77701103]
[1758115879303,0.0001,116350.0,116340.0,0.77914103]
[1758115879501,0.1719814,116360.0,116340.0,0.77914103]
[1758115879728,0.1719814,116360.0,116350.0,1.04735626]
[1758115879951,0.0001,116360.0,116350.0,1.04948626]
[1758115880150,0.17198037,116360.0,116350.0,1.04948626]
[1758115880314,0.17198037,116360.0,116350.0,0.87759112]
[1758115881356,0.17198037,116360.0,116350.0,1.04948626]
[1758115881536,0.17198037,116360.0,116350.0,1.05058626]
[1758115881937,0.26655815,116370.0,116350.0,1.05058626]
[1758115882150,0.17188037,116360.0,116350.0,1.02805626]
[1758115882359,0.17188037,116360.0,116350.0,0.85616112]
[1758115882553,0.17188037,116360.0,116350.0,1.02805626]
[1758115882819,0.17188037,116360.0,116350.0,1.05058626]
[1758115883050,0.17188037,116360.0,116350.0,0.87869112]
[1758115883268,0.17188037,116360.0,116350.0,1.05058626]
[1758115883483,0.17188037,116360.0,116350.0,0.87869112]
[1758115883968,0.17188037,116360.0,116350.0,0.73622098]
[1758115885015,0.17188037,116360.0,116350.0,0.46372098]
[1758115885230,0.17188037,116360.0,116350.0,0.73412098]
[1758115885678,0.17188037,116360.0,116350.0,0.90915612]
[1758115886597,0.17188037,116360.0,116350.0,0.73726098]
[1758115886797,0.17188037,116360.0,116350.0,0.90915612]
[1758115887205,0.26655815,116370.0,116350.0,0.90915612]
[1758115887416,0.1719656,116370.0,116360.0,0.56742971]
[1758115887616,0.1719656,116370.0,116360.0,0.63764135]
[1758115887855,0.0001,116370.0,116360.0,0.63764135]
[1758115888052,0.0001,116370.0,116360.0,0.63774135]
[1758115888258,0.1719656,116370.0,116360.0,0.63774135]
[1758115888660,0.17243553,116370.0,116360.0,0.28505004]
[1758115888838,0.17243553,116370.0,116360.0,0.46586098]
[1758115889215,0.17243553,116370.0,116360.0,0.63774135]
[1758115889927,0.17243553,116370.0,116360.0,0.46586098]
[1758115890118,0.17243553,116370.0,116360.0,0.63774135]
[1758115890359,0.17243553,116370.0,116360.0,0.73630098]
[1758115890583,0.17243553,116370.0,116360.0,0.90818135]
[1758115892582,0.17243553,116370.0,116360.0,0.73630098]
[1758115892821,0.17243553,116370.0,116360.0,0.11002967]
[1758115893077,0.17761553,116370.0,116360.0,0.08536967]
[1758115893298,0.17188037,116360.0,116350.0,0.0001]
[1758115893496,0.79553168,116360.0,116350.0,0.0001]
[1758115893851,0.82435168,116360.0,116350.0,0.0001]
[1758115894616,0.82445168,116360.0,116350.0,0.0001]
[1758115894838,0.82645168,116360.0,116350.0,0.0001]
[1758115895073,0.82445168,116360.0,116350.0,0.0001]
[1758115895351,0.82645168,116360.0,116350.0,0.0001]
[1758115895590,0.17190991,116340.0,116330.0,0.03118]
[1758115895835,0.17190991,116340.0,116330.0,0.11644967]
[1758115896080,0.17189514,116350.0,116340.0,0.02679]
[1758115896307,0.17189514,116350.0,116340.0,0.46687098]
[1758115896514,0.17199514,116350.0,116340.0,0.11104967]
[1758115896855,0.17199514,116350.0,116340.0,0.28608958]
[1758115897662,0.0001,116350.0,116340.0,0.28618958]
[1758115898255,0.0001,116350.0,116340.0,0.63888089]
[1758115898463,0.17199514,116350.0,116340.0,0.46697098]
[1758115898680,0.17199514,116350.0,116340.0,0.63675089]
[1758115898884,0.17199514,116350.0,116340.0,0.28718958]
[1758115899316,0.0001,116350.0,116340.0,0.28718958]
[1758115899505,0.0001,116350.0,116340.0,0.63988089]
[1758115900156,0.0001,116350.0,116340.0,0.9925722]
[1758115900395,0.0001,116350.0,116340.0,1.0559934]
[1758115900605,0.0001,116350.0,116340.0,0.9925722]
[1758115901051,0.0001,116350.0,116340.0,1.3925722]
[1758115901461,0.0001,116350.0,116340.0,1.3915722]
[1758115901662,0.0001,116350.0,116340.0,1.40975683]
[1758115901872,0.0051,116350.0,116340.0,1.40975683]
[1758115903826,0.005,116350.0,116340.0,1.3915722]
[1758115904389,0.005,116350.0,116340.0,1.45447091]
[1758115904592,0.005,116350.0,116340.0,1.3729396]
[1758115904820,0.005,116350.0,116340.0,1.1017796]
[1758115905030,0.005,116350.0,116340.0,1.02012829]
[1758115905230,0.005,116350.0,116340.0,1.3728596]
[1758115905475,0.005,116350.0,116340.0,1.30996089]
[1758115906222,0.005,116350.0,116340.0,1.03888089]
[1758115906436,0.005,116350.0,116340.0,1.31000089]
[1758115907063,0.005,116350.0,116340.0,0.51427967]
[1758115907064,0.17689514,116350.0,116340.0,0.51427967]
[1758115907277,0.17689514,116350.0,116340.0,0.35872967]
[1758115907278,0.17886514,116350.0,116340.0,0.35872967]
[1758115907489,0.005,116350.0,116340.0,0.55429958]
[1758115907698,0.17689514,116350.0,116340.0,0.55429958]
[1758115907945,0.17689514,116350.0,116340.0,0.91012089]
[1758115908150,0.17689514,116350.0,116340.0,0.73821098]
[1758115908348,0.17689514,116350.0,116340.0,0.38238967]
[1758115908981,0.17386514,116350.0,116340.0,0.35872967]
[1758115909182,0.17386514,116350.0,116340.0,0.52851958]
[1758115909415,0.17189514,116350.0,116340.0,0.55729958]
[1758115909612,0.17189514,116350.0,116340.0,0.38538967]
[1758115910735,0.17692514,116350.0,116340.0,0.35960967]
[1758115911577,0.17386514,116350.0,116340.0,0.36172967]
[1758115912896,0.17396514,116350.0,116340.0,0.36172967]
[1758115913139,0.17396514,116350.0,116340.0,0.38538967]
[1758115913649,0.17199514,116350.0,116340.0,0.90999089]
[1758115913896,0.17199514,116350.0,116340.0,0.74121098]
[1758115914139,0.17199514,116350.0,116340.0,0.73808098]
[1758115914651,0.17199514,116350.0,116340.0,0.90999089]
[1758115914865,0.17199514,116350.0,116340.0,0.73808098]
[1758115915118,0.17199514,116350.0,116340.0,0.74121098]
[1758115915385,0.17199514,116350.0,116340.0,0.90999089]
[1758115916025,0.17199514,116350.0,116340.0,0.73808098]
[1758115916273,0.17199514,116350.0,116340.0,0.90999089]
[1758115916465,0.17199514,116350.0,116340.0,0.91298089]
[1758115916867,0.0001,116350.0,116340.0,0.91298089]
[1758115917438,0.17199514,116350.0,116340.0,0.56028958]
[1758115917792,0.17199514,116350.0,116340.0,0.91298089]
[1758115918010,0.0001,116350.0,116340.0,0.91298089]
[1758115918207,0.0001,116350.0,116340.0,1.31298089]
[1758115919999,0.0001,116350.0,116340.0,1.04174089]
[1758115920215,0.17199514,116350.0,116340.0,1.31274089]
[1758115920412,0.17198065,116360.0,116340.0,1.31274089]
[1758115920676,0.17198065,116360.0,116350.0,0.08526967]
[1758115920677,0.17504065,116360.0,116350.0,0.08526967]
[1758115920881,0.17709065,116360.0,116350.0,0.08526967]
[1758115921303,0.17403065,116360.0,116350.0,0.08726967]
[1758115921515,0.17403065,116360.0,116350.0,0.63495612]
[1758115921717,0.17198065,116360.0,116350.0,0.63495612]
[1758115922133,0.0001,116360.0,116350.0,0.63695612]
[1758115922340,0.0001,116360.0,116350.0,0.63994612]
[1758115922545,0.0001,116360.0,116350.0,0.99263743]
[1758115922754,0.0001,116360.0,116350.0,0.63994612]